[Event "Late-Titled-Tuesday-Blitz-April-23-2024"]
[Site "Chess.com"]
[Date "2024.04.23"]
[Round "4"]
[White "Vladimir_Zakhartsov"]
[Black "nihalsarin"]
[Result "0-1"]
[WhiteElo "2915"]
[BlackElo "3144"]
[TimeControl "180+1"]
[EndTime "14:39:36 PDT"]
[Termination "nihalsarin won by checkmate"]

1. d4 {[%clk 0:02:57.1]} 1... f5 {[%clk 0:02:57.2]} 2. c4 {[%clk 0:02:52.2]}
2... Nf6 {[%clk 0:02:55.9]} 3. g3 {[%clk 0:02:48.6]} 3... Nc6 {[%clk 0:02:48.2]}
4. Nf3 {[%clk 0:02:45.8]} 4... e6 {[%clk 0:02:44]} 5. Bg2 {[%clk 0:02:45.9]}
5... d5 {[%clk 0:02:43.5]} 6. O-O {[%clk 0:02:44.9]} 6... Be7 {[%clk 0:02:43.2]}
7. Nc3 {[%clk 0:02:42.1]} 7... Ne4 {[%clk 0:02:43.4]} 8. e3 {[%clk 0:01:55.5]}
8... h5 {[%clk 0:02:39.5]} 9. Nxe4 {[%clk 0:01:53.2]} 9... dxe4 {[%clk
0:02:38.7]} 10. Ne5 {[%clk 0:01:45.7]} 10... Nxe5 {[%clk 0:02:30.4]} 11. dxe5
{[%clk 0:01:46.6]} 11... Bd7 {[%clk 0:02:31.2]} 12. f3 {[%clk 0:01:43.6]} 12...
exf3 {[%clk 0:02:18.5]} 13. Bxf3 {[%clk 0:01:43.9]} 13... h4 {[%clk 0:02:19.2]}
14. e4 {[%clk 0:01:24.5]} 14... hxg3 {[%clk 0:02:05.6]} 15. hxg3 {[%clk
0:01:15.5]} 15... Bc5+ {[%clk 0:01:25.1]} 16. Kg2 {[%clk 0:01:15.2]} 16... Qe7
{[%clk 0:01:25.9]} 17. exf5 {[%clk 0:01:03]} 17... O-O-O {[%clk 0:01:23.1]} 18.
Qb3 {[%clk 0:00:35]} 18... Bb6 {[%clk 0:00:57.5]} 19. c5 {[%clk 0:00:27.1]}
19... Qxc5 {[%clk 0:00:55.3]} 20. Bg5 {[%clk 0:00:22]} 20... Rde8 {[%clk
0:00:34.2]} 21. f6 {[%clk 0:00:20]} 21... Qxe5 {[%clk 0:00:30.7]} 22. f7 {[%clk
0:00:19.3]} 22... Ref8 {[%clk 0:00:25.8]} 23. Bf4 {[%clk 0:00:15.3]} 23... Qf5
{[%clk 0:00:26.1]} 24. a4 {[%clk 0:00:14]} 24... Qh3# {[%clk 0:00:26.1]} 0-1

[Event "Late-Titled-Tuesday-Blitz-April-23-2024"]
[Site "Chess.com"]
[Date "2024.04.23"]
[Round "4"]
[White "Kratos031"]
[Black "Navyblue1"]
[Result "0-1"]
[WhiteElo "2482"]
[BlackElo "2280"]
[TimeControl "180+1"]
[EndTime "14:39:39 PDT"]
[Termination "Navyblue1 won by resignation"]

1. d4 {[%clk 0:03:00.9]} 1... Nf6 {[%clk 0:02:56.6]} 2. Nf3 {[%clk 0:03:00.6]}
2... g6 {[%clk 0:02:50.6]} 3. c4 {[%clk 0:03:00.7]} 3... Bg7 {[%clk 0:02:49.9]}
4. Nc3 {[%clk 0:03:00.5]} 4... O-O {[%clk 0:02:49.6]} 5. e4 {[%clk 0:03:00.3]}
5... d6 {[%clk 0:02:49.3]} 6. Be2 {[%clk 0:03:00.8]} 6... Qe8 {[%clk 0:02:43.8]}
7. O-O {[%clk 0:03:00.1]} 7... e5 {[%clk 0:02:43.2]} 8. d5 {[%clk 0:02:58.5]}
8... a5 {[%clk 0:02:41]} 9. Nb5 {[%clk 0:02:55.3]} 9... Qd8 {[%clk 0:02:39]} 10.
Bd3 {[%clk 0:02:48.7]} 10... Na6 {[%clk 0:02:38.6]} 11. Be3 {[%clk 0:02:46.2]}
11... Ne8 {[%clk 0:02:35.8]} 12. Bg5 {[%clk 0:02:39.2]} 12... f6 {[%clk
0:02:35.2]} 13. Bh4 {[%clk 0:02:36.9]} 13... Nc5 {[%clk 0:02:34.6]} 14. b3
{[%clk 0:02:30.2]} 14... g5 {[%clk 0:02:24.4]} 15. Bg3 {[%clk 0:02:30.1]} 15...
f5 {[%clk 0:02:24.5]} 16. exf5 {[%clk 0:02:02.4]} 16... e4 {[%clk 0:02:23.3]}
17. Nfd4 {[%clk 0:01:41.6]} 17... Bxd4 {[%clk 0:02:19.4]} 18. Nxd4 {[%clk
0:01:40.8]} 18... exd3 {[%clk 0:02:13]} 19. Ne6 {[%clk 0:00:51.5]} 19... Bxe6
{[%clk 0:02:05.5]} 20. fxe6 {[%clk 0:00:52.4]} 20... Ng7 {[%clk 0:01:58.3]} 21.
a3 {[%clk 0:00:51.2]} 21... a4 {[%clk 0:01:45.6]} 22. b4 {[%clk 0:00:50.3]}
22... Nb3 {[%clk 0:01:45.6]} 23. Ra2 {[%clk 0:00:48.9]} 23... d2 {[%clk
0:01:44.6]} 24. f3 {[%clk 0:00:34.3]} 24... Qf6 {[%clk 0:01:42.7]} 25. Bf2
{[%clk 0:00:34.4]} 25... Qf4 {[%clk 0:01:31]} 26. Qc2 {[%clk 0:00:20.4]} 26...
Nf5 {[%clk 0:01:27]} 27. Rd1 {[%clk 0:00:20.1]} 27... Ne3 {[%clk 0:01:25.1]} 28.
Bxe3 {[%clk 0:00:17.6]} 28... Qxe3+ {[%clk 0:01:24.9]} 29. Kf1 {[%clk
0:00:18.2]} 29... Rxf3+ {[%clk 0:01:06.2]} 30. gxf3 {[%clk 0:00:17.9]} 30...
Qxf3+ {[%clk 0:01:07.1]} 31. Kg1 {[%clk 0:00:18]} 31... Rf8 {[%clk 0:01:03]} 32.
Raa1 {[%clk 0:00:12.3]} 32... Qf2+ {[%clk 0:00:58.8]} 33. Kh1 {[%clk 0:00:12.3]}
33... Qf3+ {[%clk 0:00:53.9]} 34. Kg1 {[%clk 0:00:11.6]} 34... Qg4+ {[%clk
0:00:54.4]} 35. Kh1 {[%clk 0:00:08.7]} 35... Rf2 {[%clk 0:00:52.9]} 0-1

[Event "Late-Titled-Tuesday-Blitz-April-23-2024"]
[Site "Chess.com"]
[Date "2024.04.23"]
[Round "4"]
[White "dolynachess"]
[Black "Rodalquilar"]
[Result "0-1"]
[WhiteElo "2550"]
[BlackElo "2746"]
[TimeControl "180+1"]
[EndTime "14:39:40 PDT"]
[Termination "Rodalquilar won by resignation"]

1. d4 {[%clk 0:02:59.5]} 1... d5 {[%clk 0:03:00.3]} 2. c4 {[%clk 0:02:58.7]}
2... e6 {[%clk 0:03:00.8]} 3. Nf3 {[%clk 0:02:59.3]} 3... Nf6 {[%clk 0:03:00.8]}
4. g3 {[%clk 0:02:58.8]} 4... Be7 {[%clk 0:02:53.3]} 5. Bg2 {[%clk 0:02:55.6]}
5... O-O {[%clk 0:02:53.7]} 6. O-O {[%clk 0:02:56.2]} 6... dxc4 {[%clk
0:02:54.2]} 7. Ne5 {[%clk 0:02:56.2]} 7... Qd6 {[%clk 0:02:53.6]} 8. Nxc4 {[%clk
0:02:53.4]} 8... Qa6 {[%clk 0:02:53.8]} 9. Qb3 {[%clk 0:02:52.7]} 9... Rd8
{[%clk 0:02:51.8]} 10. Rd1 {[%clk 0:02:51.6]} 10... Nc6 {[%clk 0:02:31.8]} 11.
e3 {[%clk 0:02:37.8]} 11... b5 {[%clk 0:02:31.6]} 12. Ne5 {[%clk 0:02:22]} 12...
Bb7 {[%clk 0:02:31.6]} 13. Nxc6 {[%clk 0:02:08.1]} 13... Bxc6 {[%clk 0:02:31.8]}
14. Nc3 {[%clk 0:02:01.3]} 14... b4 {[%clk 0:02:24.7]} 15. Bxc6 {[%clk
0:01:46.6]} 15... Qxc6 {[%clk 0:02:25.6]} 16. Nb1 {[%clk 0:01:21.4]} 16... Qf3
{[%clk 0:02:16.3]} 17. Nd2 {[%clk 0:01:16.3]} 17... Qe2 {[%clk 0:02:16.6]} 18.
Rf1 {[%clk 0:01:16.4]} 18... c5 {[%clk 0:01:55.7]} 19. dxc5 {[%clk 0:01:09]}
19... Bxc5 {[%clk 0:01:43.4]} 20. Qc4 {[%clk 0:00:56.5]} 20... Rxd2 {[%clk
0:01:43.5]} 21. Qxc5 {[%clk 0:00:56.4]} 21... Rd1 {[%clk 0:01:44]} 22. Rxd1
{[%clk 0:00:51.1]} 22... Qxd1+ {[%clk 0:01:44.3]} 23. Kg2 {[%clk 0:00:51.9]}
23... Ng4 {[%clk 0:00:57]} 24. h3 {[%clk 0:00:31.5]} 24... Nf6 {[%clk
0:00:54.9]} 25. b3 {[%clk 0:00:13.6]} 25... Qe2 {[%clk 0:00:51.7]} 26. Qxb4
{[%clk 0:00:09.9]} 26... Rc8 {[%clk 0:00:51.5]} 27. Ba3 {[%clk 0:00:08.5]} 27...
Nd5 {[%clk 0:00:43.9]} 28. Qg4 {[%clk 0:00:04.3]} 28... Nxe3+ {[%clk 0:00:42.5]}
0-1

[Event "Late-Titled-Tuesday-Blitz-April-23-2024"]
[Site "Chess.com"]
[Date "2024.04.23"]
[Round "4"]
[White "sergoy"]
[Black "ArtemDyachuk"]
[Result "1-0"]
[WhiteElo "2938"]
[BlackElo "2738"]
[TimeControl "180+1"]
[EndTime "14:39:44 PDT"]
[Termination "sergoy won on time"]

1. d4 {[%clk 0:03:00.9]} 1... Nf6 {[%clk 0:02:57.6]} 2. c4 {[%clk 0:03:01.2]}
2... e6 {[%clk 0:02:58.2]} 3. Nf3 {[%clk 0:03:01.9]} 3... c5 {[%clk 0:02:58.1]}
4. d5 {[%clk 0:03:01.9]} 4... d6 {[%clk 0:02:58.1]} 5. Nc3 {[%clk 0:03:01.7]}
5... exd5 {[%clk 0:02:58.3]} 6. cxd5 {[%clk 0:03:02.1]} 6... g6 {[%clk
0:02:56.6]} 7. h3 {[%clk 0:03:02.3]} 7... Bg7 {[%clk 0:02:56.6]} 8. e4 {[%clk
0:03:02.8]} 8... O-O {[%clk 0:02:56.8]} 9. Bd3 {[%clk 0:03:03.5]} 9... b5 {[%clk
0:02:57.1]} 10. Nxb5 {[%clk 0:03:02.5]} 10... Re8 {[%clk 0:02:54.8]} 11. O-O
{[%clk 0:03:02]} 11... Nxe4 {[%clk 0:02:54.8]} 12. Bxe4 {[%clk 0:03:02.5]} 12...
Rxe4 {[%clk 0:02:54.2]} 13. Bg5 {[%clk 0:03:03.2]} 13... Qd7 {[%clk 0:02:33.1]}
14. Nc3 {[%clk 0:03:03.1]} 14... Re8 {[%clk 0:02:32.9]} 15. Qd2 {[%clk
0:03:02.5]} 15... Na6 {[%clk 0:02:29.9]} 16. Rad1 {[%clk 0:02:46]} 16... Rb8
{[%clk 0:02:28.9]} 17. Rfe1 {[%clk 0:02:44.7]} 17... Bb7 {[%clk 0:02:20.4]} 18.
Bh4 {[%clk 0:02:20.3]} 18... Nc7 {[%clk 0:02:07.7]} 19. Ng5 {[%clk 0:01:58.2]}
19... h6 {[%clk 0:01:31.9]} 20. Nge4 {[%clk 0:01:55.3]} 20... g5 {[%clk
0:01:08.8]} 21. Bg3 {[%clk 0:01:44.9]} 21... f5 {[%clk 0:01:08.6]} 22. Nxd6
{[%clk 0:01:44.7]} 22... Rxe1+ {[%clk 0:01:08.1]} 23. Rxe1 {[%clk 0:01:44.6]}
23... f4 {[%clk 0:01:08.4]} 24. Nxb7 {[%clk 0:01:44.7]} 24... Rxb7 {[%clk
0:00:52.6]} 25. Bh2 {[%clk 0:01:44.8]} 25... Rb8 {[%clk 0:00:42.2]} 26. d6
{[%clk 0:01:32.1]} 26... Rf8 {[%clk 0:00:13.4]} 27. Ne4 {[%clk 0:01:23.1]} 27...
Ne6 {[%clk 0:00:10.7]} 28. Qd5 {[%clk 0:01:22.6]} 28... Rc8 {[%clk 0:00:06.3]}
29. h4 {[%clk 0:01:13]} 29... Kh8 {[%clk 0:00:02.3]} 30. hxg5 {[%clk 0:01:13.3]}
30... hxg5 {[%clk 0:00:03.2]} 31. Nxg5 {[%clk 0:01:10.5]} 31... Nd4 {[%clk
0:00:01.2]} 32. Bxf4 {[%clk 0:00:48]} 1-0

[Event "Late-Titled-Tuesday-Blitz-April-23-2024"]
[Site "Chess.com"]
[Date "2024.04.23"]
[Round "4"]
[White "manmanlai1"]
[Black "RealPerangel"]
[Result "0-1"]
[WhiteElo "2523"]
[BlackElo "2706"]
[TimeControl "180+1"]
[EndTime "14:39:44 PDT"]
[Termination "RealPerangel won on time"]

1. e4 {[%clk 0:03:00.9]} 1... d5 {[%clk 0:02:59.7]} 2. exd5 {[%clk 0:03:00.7]}
2... Qxd5 {[%clk 0:03:00.6]} 3. Nc3 {[%clk 0:02:53.9]} 3... Qa5 {[%clk
0:02:59.4]} 4. d4 {[%clk 0:02:51.6]} 4... Nf6 {[%clk 0:02:59.3]} 5. Bc4 {[%clk
0:02:51.3]} 5... Bg4 {[%clk 0:02:53.9]} 6. f3 {[%clk 0:02:46.2]} 6... Be6 {[%clk
0:02:52.5]} 7. Bxe6 {[%clk 0:02:43.8]} 7... fxe6 {[%clk 0:02:51.4]} 8. Nh3
{[%clk 0:02:43]} 8... e5 {[%clk 0:02:30.6]} 9. O-O {[%clk 0:02:29.6]} 9... Qb6
{[%clk 0:02:23.1]} 10. Be3 {[%clk 0:02:10.9]} 10... Nc6 {[%clk 0:02:22.2]} 11.
Na4 {[%clk 0:01:57.4]} 11... Qa5 {[%clk 0:02:08.9]} 12. c3 {[%clk 0:01:54.5]}
12... O-O-O {[%clk 0:02:04.8]} 13. b4 {[%clk 0:01:47]} 13... Qb5 {[%clk
0:02:03.2]} 14. Nc5 {[%clk 0:01:29]} 14... Nd5 {[%clk 0:01:56.1]} 15. Bf2 {[%clk
0:00:38.3]} 15... Nxc3 {[%clk 0:01:52.2]} 16. Qb3 {[%clk 0:00:27.6]} 16... Nxd4
{[%clk 0:01:40.9]} 17. Bxd4 {[%clk 0:00:24.7]} 17... Ne2+ {[%clk 0:01:40.8]} 18.
Kh1 {[%clk 0:00:25.3]} 18... Nxd4 {[%clk 0:01:41.4]} 19. Qc3 {[%clk 0:00:21.6]}
19... e6 {[%clk 0:01:40.2]} 20. Ng5 {[%clk 0:00:17.3]} 20... Bxc5 {[%clk
0:01:39.6]} 21. bxc5 {[%clk 0:00:17.1]} 21... Rd7 {[%clk 0:01:29.8]} 22. Rab1
{[%clk 0:00:17]} 22... Qc6 {[%clk 0:01:29.8]} 23. Rfe1 {[%clk 0:00:16.7]} 23...
h6 {[%clk 0:01:28.3]} 24. Ne4 {[%clk 0:00:15.7]} 24... Rhd8 {[%clk 0:01:26.5]}
25. h3 {[%clk 0:00:15.3]} 25... g5 {[%clk 0:01:24.1]} 26. Rb4 {[%clk 0:00:14.5]}
26... b6 {[%clk 0:01:20.3]} 27. Rc4 {[%clk 0:00:09.3]} 27... b5 {[%clk
0:01:15.3]} 28. Rb4 {[%clk 0:00:09.3]} 28... a5 {[%clk 0:01:10.1]} 29. Rb2
{[%clk 0:00:08.8]} 29... b4 {[%clk 0:01:10.6]} 30. Qc1 {[%clk 0:00:05.5]} 30...
Qb5 {[%clk 0:01:07.5]} 31. a3 {[%clk 0:00:05.6]} 31... b3 {[%clk 0:01:07.5]} 32.
Qc3 {[%clk 0:00:04.8]} 32... a4 {[%clk 0:01:07.7]} 33. Rd2 {[%clk 0:00:02.1]}
33... Nc6 {[%clk 0:01:06.9]} 34. Rxd7 {[%clk 0:00:02.6]} 34... Rxd7 {[%clk
0:01:07.5]} 35. Rb1 {[%clk 0:00:02.3]} 35... Qd3 {[%clk 0:01:06.6]} 36. Qc1
{[%clk 0:00:01.6]} 36... Qc2 {[%clk 0:01:05.4]} 37. Kh2 {[%clk 0:00:01.7]} 37...
Qxc1 {[%clk 0:01:04.9]} 38. Rxc1 {[%clk 0:00:02.6]} 38... Rd3 {[%clk 0:01:04.1]}
39. Rb1 {[%clk 0:00:02.5]} 39... Na5 {[%clk 0:01:04.3]} 0-1

[Event "Late-Titled-Tuesday-Blitz-April-23-2024"]
[Site "Chess.com"]
[Date "2024.04.23"]
[Round "4"]
[White "boracilek"]
[Black "SidArun"]
[Result "1-0"]
[WhiteElo "2517"]
[BlackElo "2348"]
[TimeControl "180+1"]
[EndTime "14:39:46 PDT"]
[Termination "boracilek won by resignation"]

1. d4 {[%clk 0:03:00.9]} 1... d5 {[%clk 0:02:59.9]} 2. Bf4 {[%clk 0:03:01]} 2...
e6 {[%clk 0:02:56]} 3. e3 {[%clk 0:03:01.2]} 3... Bd6 {[%clk 0:02:55.9]} 4. Bg3
{[%clk 0:02:57.1]} 4... h5 {[%clk 0:02:54.2]} 5. Nf3 {[%clk 0:02:39.6]} 5... c5
{[%clk 0:02:48.1]} 6. dxc5 {[%clk 0:02:36]} 6... Bxg3 {[%clk 0:02:44.1]} 7. hxg3
{[%clk 0:02:36.2]} 7... Qa5+ {[%clk 0:02:44.3]} 8. Nbd2 {[%clk 0:02:30.1]} 8...
Nf6 {[%clk 0:02:41.2]} 9. c4 {[%clk 0:02:24.8]} 9... dxc4 {[%clk 0:02:34]} 10.
Qc2 {[%clk 0:02:13.3]} 10... Qxc5 {[%clk 0:02:33]} 11. Bxc4 {[%clk 0:02:08.9]}
11... Nc6 {[%clk 0:02:32.5]} 12. Ke2 {[%clk 0:02:04]} 12... Bd7 {[%clk
0:02:27.4]} 13. Rac1 {[%clk 0:02:02.9]} 13... Qb6 {[%clk 0:02:20.8]} 14. Qb3
{[%clk 0:01:51.6]} 14... Qxb3 {[%clk 0:01:41.7]} 15. Nxb3 {[%clk 0:01:51.1]}
15... Ne7 {[%clk 0:01:34.3]} 16. Ne5 {[%clk 0:01:43.6]} 16... Bc6 {[%clk
0:01:30.2]} 17. f3 {[%clk 0:01:41]} 17... a6 {[%clk 0:01:21.5]} 18. Na5 {[%clk
0:01:36.6]} 18... O-O {[%clk 0:01:13.6]} 19. Naxc6 {[%clk 0:01:27.1]} 19... Nxc6
{[%clk 0:01:13.4]} 20. Nxc6 {[%clk 0:01:26.8]} 20... bxc6 {[%clk 0:01:13.6]} 21.
Bd3 {[%clk 0:01:23.9]} 21... Rab8 {[%clk 0:01:12.6]} 22. b3 {[%clk 0:01:21.8]}
22... Rb6 {[%clk 0:01:12.7]} 23. Rc5 {[%clk 0:01:20.3]} 23... g6 {[%clk
0:01:11.1]} 24. Rhc1 {[%clk 0:01:20.3]} 24... Rc8 {[%clk 0:01:05.5]} 25. Ra5
{[%clk 0:01:18.3]} 25... Nd5 {[%clk 0:00:44.4]} 26. Be4 {[%clk 0:01:16.1]} 26...
Rcb8 {[%clk 0:00:32.5]} 27. Rac5 {[%clk 0:01:13.5]} 27... Nb4 {[%clk 0:00:28.5]}
28. a3 {[%clk 0:01:09]} 28... Nd5 {[%clk 0:00:28.6]} 29. b4 {[%clk 0:01:05.6]}
29... Rb5 {[%clk 0:00:24.8]} 30. Rxb5 {[%clk 0:00:40.9]} 30... Rxb5 {[%clk
0:00:18.3]} 31. Rxc6 {[%clk 0:00:39.3]} 31... a5 {[%clk 0:00:18.9]} 32. Bxd5
{[%clk 0:00:36.9]} 32... exd5 {[%clk 0:00:17.7]} 33. Rc5 {[%clk 0:00:35.6]} 1-0

[Event "Late-Titled-Tuesday-Blitz-April-23-2024"]
[Site "Chess.com"]
[Date "2024.04.23"]
[Round "4"]
[White "masterofpuppets2"]
[Black "Francisco_Ferrari"]
[Result "1-0"]
[WhiteElo "2484"]
[BlackElo "2193"]
[TimeControl "180+1"]
[EndTime "14:39:47 PDT"]
[Termination "masterofpuppets2 won by checkmate"]

1. d4 {[%clk 0:03:00.9]} 1... d5 {[%clk 0:02:51.8]} 2. c4 {[%clk 0:03:01.3]}
2... e6 {[%clk 0:02:49.1]} 3. Nc3 {[%clk 0:03:00.9]} 3... Be7 {[%clk 0:02:43.9]}
4. cxd5 {[%clk 0:03:01.2]} 4... exd5 {[%clk 0:02:41.8]} 5. Bf4 {[%clk
0:02:59.4]} 5... Nf6 {[%clk 0:02:35.3]} 6. e3 {[%clk 0:02:59.6]} 6... O-O {[%clk
0:02:35.4]} 7. Bd3 {[%clk 0:02:59.3]} 7... c6 {[%clk 0:02:33.1]} 8. Qc2 {[%clk
0:02:58.9]} 8... Re8 {[%clk 0:02:29.8]} 9. Nge2 {[%clk 0:02:55.1]} 9... Nbd7
{[%clk 0:02:18.3]} 10. O-O {[%clk 0:02:52.7]} 10... h6 {[%clk 0:02:17.7]} 11. h3
{[%clk 0:02:49.7]} 11... Nf8 {[%clk 0:02:15.5]} 12. f3 {[%clk 0:02:49.2]} 12...
Bd6 {[%clk 0:02:15.6]} 13. Qd2 {[%clk 0:02:40.2]} 13... Bxf4 {[%clk 0:02:03.8]}
14. Nxf4 {[%clk 0:02:41.1]} 14... Ne6 {[%clk 0:01:49.8]} 15. Nxe6 {[%clk
0:02:34.1]} 15... Bxe6 {[%clk 0:01:50.7]} 16. Rad1 {[%clk 0:02:24.9]} 16... a5
{[%clk 0:01:22.1]} 17. Qf2 {[%clk 0:02:24.4]} 17... b5 {[%clk 0:01:01.2]} 18. e4
{[%clk 0:02:23.1]} 18... dxe4 {[%clk 0:00:59.7]} 19. fxe4 {[%clk 0:02:21.7]}
19... b4 {[%clk 0:01:00.2]} 20. Ne2 {[%clk 0:02:15.1]} 20... Bxa2 {[%clk
0:00:57.6]} 21. e5 {[%clk 0:02:14.6]} 21... Nh7 {[%clk 0:00:50.7]} 22. Ng3
{[%clk 0:01:43.4]} 22... Bd5 {[%clk 0:00:28.6]} 23. Nf5 {[%clk 0:01:43.1]} 23...
Qg5 {[%clk 0:00:28.2]} 24. Bb1 {[%clk 0:01:34.2]} 24... Nf8 {[%clk 0:00:23]} 25.
Rd3 {[%clk 0:01:34]} 25... Be4 {[%clk 0:00:16.6]} 26. Rg3 {[%clk 0:01:33.7]}
26... Qxf5 {[%clk 0:00:10.5]} 27. Qe1 {[%clk 0:01:31.4]} 27... Qd7 {[%clk
0:00:06.7]} 28. Qxe4 {[%clk 0:01:28.6]} 28... Rad8 {[%clk 0:00:07.3]} 29. Rf4
{[%clk 0:01:15.3]} 29... Qd5 {[%clk 0:00:07]} 30. Qf5 {[%clk 0:01:11.6]} 30...
c5 {[%clk 0:00:06.2]} 31. Rfg4 {[%clk 0:01:05.2]} 31... g6 {[%clk 0:00:06.8]}
32. Qh5 {[%clk 0:00:56.9]} 32... cxd4 {[%clk 0:00:05]} 33. Qxh6 {[%clk 0:00:56]}
33... Qxe5 {[%clk 0:00:04.7]} 34. Bxg6 {[%clk 0:00:53.6]} 34... Nxg6 {[%clk
0:00:04.5]} 35. Rxg6+ {[%clk 0:00:53.4]} 35... fxg6 {[%clk 0:00:05.2]} 36. Rxg6+
{[%clk 0:00:53.5]} 36... Kf7 {[%clk 0:00:05.2]} 37. Qh7+ {[%clk 0:00:52.2]}
37... Kf8 {[%clk 0:00:05.8]} 38. Rg8# {[%clk 0:00:52.4]} 1-0

[Event "Late-Titled-Tuesday-Blitz-April-23-2024"]
[Site "Chess.com"]
[Date "2024.04.23"]
[Round "4"]
[White "PNEPaul"]
[Black "VladimirBugayev"]
[Result "0-1"]
[WhiteElo "1911"]
[BlackElo "2243"]
[TimeControl "180+1"]
[EndTime "14:39:48 PDT"]
[Termination "VladimirBugayev won on time"]

1. e4 {[%clk 0:02:22.4]} 1... c6 {[%clk 0:02:57.5]} 2. d4 {[%clk 0:02:21.6]}
2... d5 {[%clk 0:02:57.9]} 3. Nc3 {[%clk 0:02:21.6]} 3... dxe4 {[%clk
0:02:57.9]} 4. f3 {[%clk 0:02:22]} 4... exf3 {[%clk 0:02:54.2]} 5. Nxf3 {[%clk
0:02:21.9]} 5... Nf6 {[%clk 0:02:55]} 6. Bc4 {[%clk 0:02:21.5]} 6... Bf5 {[%clk
0:02:53]} 7. O-O {[%clk 0:02:20.7]} 7... e6 {[%clk 0:02:53.7]} 8. Ne5 {[%clk
0:02:20.6]} 8... Nd5 {[%clk 0:02:50.2]} 9. Rxf5 {[%clk 0:02:15.2]} 9... exf5
{[%clk 0:02:46.2]} 10. Nxd5 {[%clk 0:02:13.6]} 10... cxd5 {[%clk 0:02:43.5]} 11.
Bb5+ {[%clk 0:02:13.6]} 11... Ke7 {[%clk 0:02:38.9]} 12. Qh5 {[%clk 0:01:42.9]}
12... Qc7 {[%clk 0:01:59.7]} 13. Qxf7+ {[%clk 0:01:15.9]} 13... Kd6 {[%clk
0:01:57.6]} 14. Qxf5 {[%clk 0:01:16]} 14... Qa5 {[%clk 0:01:38]} 15. Nf7+ {[%clk
0:01:03.6]} 15... Kc7 {[%clk 0:01:26.7]} 16. Bf4+ {[%clk 0:01:01.2]} 16... Kb6
{[%clk 0:01:26.7]} 17. Bd3 {[%clk 0:00:35.6]} 17... Nc6 {[%clk 0:01:15.9]} 18.
Nxh8 {[%clk 0:00:32.9]} 18... Be7 {[%clk 0:01:13.2]} 19. Nf7 {[%clk 0:00:29.6]}
19... Rf8 {[%clk 0:01:13.8]} 20. Qe6 {[%clk 0:00:28.2]} 20... Qb4 {[%clk
0:01:08.2]} 21. c3 {[%clk 0:00:25]} 21... Qa4 {[%clk 0:00:53.2]} 22. b3 {[%clk
0:00:23.7]} 22... Qa3 {[%clk 0:00:53.2]} 23. Qxd5 {[%clk 0:00:22.3]} 23... a6
{[%clk 0:00:45]} 24. Ne5 {[%clk 0:00:17.1]} 24... Rxf4 {[%clk 0:00:39.8]} 25.
Nd7+ {[%clk 0:00:10.9]} 25... Ka7 {[%clk 0:00:38.4]} 26. Re1 {[%clk 0:00:06.3]}
26... Qb2 {[%clk 0:00:32.8]} 27. Rf1 {[%clk 0:00:02.3]} 27... Rxf1+ {[%clk
0:00:28.7]} 28. Bxf1 {[%clk 0:00:01.7]} 28... Qxc3 {[%clk 0:00:28.8]} 0-1

[Event "Late-Titled-Tuesday-Blitz-April-23-2024"]
[Site "Chess.com"]
[Date "2024.04.23"]
[Round "4"]
[White "CaspiIsrael"]
[Black "adricalderon8"]
[Result "1-0"]
[WhiteElo "2708"]
[BlackElo "2523"]
[TimeControl "180+1"]
[EndTime "14:39:50 PDT"]
[Termination "CaspiIsrael won by resignation"]

1. e4 {[%clk 0:03:00.9]} 1... c5 {[%clk 0:02:59]} 2. Nf3 {[%clk 0:03:00.2]} 2...
Nc6 {[%clk 0:02:59.7]} 3. d4 {[%clk 0:02:59]} 3... cxd4 {[%clk 0:03:00.6]} 4.
Nxd4 {[%clk 0:02:59.7]} 4... g6 {[%clk 0:03:01.1]} 5. c4 {[%clk 0:02:59]} 5...
Bg7 {[%clk 0:03:00.8]} 6. Be3 {[%clk 0:02:58.6]} 6... Nf6 {[%clk 0:03:01.4]} 7.
Nc3 {[%clk 0:02:57.9]} 7... O-O {[%clk 0:03:02.1]} 8. Be2 {[%clk 0:02:56.4]}
8... d6 {[%clk 0:03:02.4]} 9. O-O {[%clk 0:02:55.3]} 9... Bd7 {[%clk 0:03:01.7]}
10. f3 {[%clk 0:02:54.5]} 10... Nxd4 {[%clk 0:03:00.9]} 11. Bxd4 {[%clk
0:02:55.1]} 11... a5 {[%clk 0:03:01.8]} 12. Qd2 {[%clk 0:02:54.4]} 12... Bc6
{[%clk 0:03:02.2]} 13. Rac1 {[%clk 0:02:43.2]} 13... Nd7 {[%clk 0:03:01.9]} 14.
Be3 {[%clk 0:02:43.3]} 14... Nc5 {[%clk 0:03:01.1]} 15. b3 {[%clk 0:02:41.7]}
15... e6 {[%clk 0:02:59.1]} 16. Rfd1 {[%clk 0:02:40.6]} 16... Be5 {[%clk
0:02:58.9]} 17. Nb5 {[%clk 0:02:38.1]} 17... Bxb5 {[%clk 0:02:46.8]} 18. cxb5
{[%clk 0:02:37.9]} 18... Qe7 {[%clk 0:02:46.7]} 19. Bf1 {[%clk 0:02:27.5]} 19...
Rac8 {[%clk 0:02:45.6]} 20. Qxa5 {[%clk 0:02:26.3]} 20... Qh4 {[%clk 0:02:39.4]}
21. g3 {[%clk 0:02:24.1]} 21... Qh5 {[%clk 0:02:28.5]} 22. Bg2 {[%clk
0:02:20.5]} 22... f5 {[%clk 0:02:18.9]} 23. exf5 {[%clk 0:02:19.6]} 23... Qxf5
{[%clk 0:02:16.6]} 24. Qd2 {[%clk 0:02:15.9]} 24... h5 {[%clk 0:02:14.2]} 25. b4
{[%clk 0:02:02.7]} 25... Na4 {[%clk 0:02:11.4]} 26. f4 {[%clk 0:02:01.9]} 26...
Bb2 {[%clk 0:02:05.3]} 27. Rxc8 {[%clk 0:02:00.4]} 27... Rxc8 {[%clk 0:02:04.9]}
28. Bxb7 {[%clk 0:01:58.9]} 28... Rd8 {[%clk 0:02:03.6]} 29. Qd3 {[%clk
0:01:53.6]} 29... Nc3 {[%clk 0:01:58.8]} 30. Qxf5 {[%clk 0:01:48.1]} 30... gxf5
{[%clk 0:01:58.6]} 31. Rd2 {[%clk 0:01:48.4]} 31... Bc1 {[%clk 0:01:58.2]} 32.
Rd3 {[%clk 0:01:45.2]} 32... Nxa2 {[%clk 0:01:49.9]} 33. Bxc1 {[%clk 0:01:39.1]}
33... Nxc1 {[%clk 0:01:49.9]} 34. Re3 {[%clk 0:01:39.4]} 34... Kf7 {[%clk
0:01:49]} 35. Bf3 {[%clk 0:01:38.5]} 35... Na2 {[%clk 0:01:45.8]} 36. Bxh5+
{[%clk 0:01:36.1]} 36... Ke7 {[%clk 0:01:44.9]} 37. Ra3 {[%clk 0:01:18]} 37...
Nxb4 {[%clk 0:01:40.8]} 38. Rb3 {[%clk 0:01:18.2]} 38... Nd5 {[%clk 0:01:38.2]}
39. Bf3 {[%clk 0:01:16.6]} 39... Nb6 {[%clk 0:01:37.8]} 40. Rc3 {[%clk
0:01:14.1]} 40... e5 {[%clk 0:01:31.7]} 41. Rc7+ {[%clk 0:01:09.2]} 41... Ke6
{[%clk 0:01:27.8]} 42. fxe5 {[%clk 0:01:05.2]} 42... dxe5 {[%clk 0:01:27.9]} 43.
Rc6+ {[%clk 0:01:05.4]} 43... Rd6 {[%clk 0:01:28.6]} 44. Kf2 {[%clk 0:01:03.7]}
44... e4 {[%clk 0:01:25.2]} 45. Rxd6+ {[%clk 0:01:03.8]} 45... Kxd6 {[%clk
0:01:25.2]} 46. Be2 {[%clk 0:01:04.7]} 46... Ke5 {[%clk 0:01:22.2]} 47. h4
{[%clk 0:01:04.8]} 47... f4 {[%clk 0:01:22.2]} 48. gxf4+ {[%clk 0:01:04.7]}
48... Kxf4 {[%clk 0:01:23.1]} 49. h5 {[%clk 0:01:05.3]} 49... e3+ {[%clk
0:01:10.8]} 50. Kg2 {[%clk 0:01:01]} 50... Kg5 {[%clk 0:01:08]} 51. Kf1 {[%clk
0:00:54.4]} 51... Nd5 {[%clk 0:01:07.2]} 52. Bf3 {[%clk 0:00:53.6]} 52... Nb6
{[%clk 0:00:51.8]} 53. Ke2 {[%clk 0:00:53.1]} 53... Kf4 {[%clk 0:00:52.5]} 54.
h6 {[%clk 0:00:52]} 54... Na4 {[%clk 0:00:53.4]} 55. h7 {[%clk 0:00:51.1]} 55...
Nc3+ {[%clk 0:00:54.3]} 56. Ke1 {[%clk 0:00:47.6]} 56... Kxf3 {[%clk 0:00:52.1]}
57. h8=Q {[%clk 0:00:47.5]} 57... Ne4 {[%clk 0:00:53]} 58. Qh1+ {[%clk
0:00:47.2]} 1-0